bitfinex-derivatives/quotes_ETHF0:USTF0_20250101
["timestamp","ask_amount","ask_price","bid_price","bid_amount"]
[1735742268870,1.033,3339.8,3339.5,3.2078]
[1735742269267,0.30001,3339.7,3339.6,0.46922529]
[1735742269867,0.30001,3339.7,3339.6,0.76923529]
[1735742270074,1.033,3339.8,3339.6,0.76923529]
[1735742270264,1.333,3339.8,3339.6,0.76923529]
[1735742270670,1.333,3339.8,3339.7,0.46922529]
[1735742271170,0.3,3339.8,3339.7,0.91322529]
[1735742271395,3.50777,3340.1,3339.9,0.29998]
[1735742271877,3.50777,3340.1,3339.8,0.29999]
[1735742271878,0.29999,3339.9,3339.8,0.29999]
[1735742272071,0.29999,3339.9,3339.8,0.76908428]
[1735742272472,0.29998,3340.0,3339.8,0.76908428]
[1735742272671,0.29998,3340.0,3339.9,0.46909428]
[1735742273979,0.3,3339.9,3339.7,0.744]
[1735742274474,0.3,3339.9,3339.8,0.46909604]
[1735742276375,0.3,3339.8,3339.7,0.444]
[1735742276575,0.3,3339.8,3339.7,0.4691004]
[1735742276993,0.30003,3339.5,3339.4,0.30003]
[1735742279188,5.81289158,3339.8,3339.3,0.30004]
[1735742279389,0.30003,3339.5,3339.4,0.30003]
[1735742280094,0.30002,3339.6,3339.5,0.30002]
[1735742280984,0.30003,3339.5,3339.4,0.30003]
[1735742281388,0.30003,3339.5,3339.4,0.76915808]
[1735742281590,0.30003,3339.5,3339.4,0.30003]
[1735742282589,0.30004,3339.4,3339.3,0.30004]
[1735742283391,0.30004,3339.4,3339.3,0.76918309]
[1735742284697,5.81289158,3339.7,3339.3,0.46914309]
[1735742284996,5.81289158,3339.7,3339.6,0.30002]
[1735742285485,0.29999,3339.9,3339.7,0.30001]
[1735742285486,5.81289158,3339.8,3339.7,0.30001]
[1735742285692,5.81289158,3339.8,3339.7,41.56915309]
[1735742285992,6.11289158,3339.8,3339.7,41.26914309]
[1735742286202,6.11289158,3339.8,3339.7,0.46914309]
[1735742286492,0.30003,3339.4,3339.3,0.30004]
[1735742287289,0.4306,3339.9,3339.2,0.8647]
[1735742287494,0.30002,3339.6,3339.5,0.30001]
[1735742287697,0.30002,3339.6,3339.5,3.50781]
[1735742287998,0.30002,3339.6,3339.5,3.2078]
[1735742288402,0.30003,3339.5,3339.4,0.30003]
[1735742288605,0.30004,3339.4,3339.3,0.30004]
[1735742289804,0.4306,3339.9,3339.2,0.8647]
[1735742289992,0.4306,3339.9,3339.5,3.2078]
[1735742290396,0.30001,3339.8,3339.7,0.3]
[1735742292197,0.3,3339.9,3339.8,0.29999]
[1735742294001,5.88853273,3339.9,3339.8,0.29999]
[1735742294495,5.88853273,3339.9,3339.8,0.7690769]
[1735742294803,6.18852273,3339.9,3339.8,1.21957896]
[1735742295103,5.88853273,3339.9,3339.6,0.30001]
[1735742295304,0.30001,3339.7,3339.6,0.30001]
[1735742295504,0.29999,3340.0,3339.9,0.29998]
[1735742296403,5.88853273,3340.2,3339.5,3.2078]
[1735742296596,5.88853273,3340.2,3339.7,0.3]
[1735742296597,0.30001,3339.8,3339.7,0.3]
[1735742296797,0.30001,3339.8,3339.7,0.76907745]
[1735742298206,6.18853273,3339.9,3339.8,0.3]
[1735742298907,0.3,3339.9,3339.8,0.3]
[1735742299206,0.3,3339.9,3339.8,0.76908339]
[1735742300802,3.2078,3340.4,3339.8,0.4690751]
[1735742301106,3.50775,3340.4,3340.3,0.29995]
[1735742301607,3.2078,3340.4,3340.3,0.29995]
[1735742301807,3.50774,3340.4,3340.3,0.29995]
[1735742302703,0.29998,3340.1,3340.0,0.29998]
[1735742302913,3.2078,3340.4,3339.9,0.933]
[1735742303102,3.2078,3340.4,3340.3,0.29995]
[1735742303103,3.50775,3340.4,3340.3,0.29995]
[1735742304603,3.2078,3340.4,3339.9,0.933]
[1735742304805,0.29996,3340.3,3340.2,0.29996]
[1735742305107,6.18486733,3340.2,3340.1,0.29997]
[1735742305708,0.29998,3340.0,3339.9,1.23298]
[1735742305908,0.29998,3340.0,3339.9,0.76759]
[1735742306906,0.29997,3340.1,3340.0,0.29997]
[1735742307207,6.18486733,3340.2,3340.1,0.29997]
[1735742307609,0.29998,3340.1,3340.0,0.29997]
[1735742310108,5.88489733,3340.2,3340.1,0.29997]
[1735742310309,5.88489733,3340.2,3340.1,3.50777]
[1735742310603,5.88489733,3340.2,3340.1,3.97678676]
[1735742311013,5.88489733,3340.2,3340.1,7.00430201]
[1735742311207,5.88489733,3340.2,3340.1,8.24430201]
[1735742311516,5.88489733,3340.6,3340.5,0.29994]
[1735742312619,5.88489733,3340.7,3340.6,0.29993]
[1735742313701,6.18480733,3340.8,3340.7,0.29992]
[1735742317213,5.88489733,3340.8,3340.7,0.29992]
[1735742318416,0.29991,3340.8,3340.7,0.29992]
[1735742318604,6.18479733,3340.9,3340.8,0.29991]
[1735742319515,0.29991,3340.8,3340.7,0.29991]
[1735742319917,5.88489733,3340.9,3340.4,5.48494715]
[1735742320216,6.18479733,3340.9,3340.8,0.29991]
[1735742320613,5.88489733,3340.9,3340.4,3.2078]
[1735742320920,0.29992,3340.8,3340.7,0.29991]
[1735742322017,0.29993,3340.6,3340.5,0.29993]
[1735742322211,0.29991,3340.8,3340.7,0.29991]
[1735742323713,0.4586,3340.9,3340.4,3.2078]
[1735742323913,0.74978,3340.8,3340.5,0.46896883]
[1735742324113,0.29993,3340.6,3340.5,0.46896883]
[1735742324416,0.29994,3340.5,3340.4,3.2078]
[1735742324615,0.76714,3340.5,3340.4,3.2078]
[1735742326408,0.76714,3340.5,3340.4,3.50774]
[1735742326714,0.29993,3340.6,3340.5,0.29993]
[1735742327018,5.88489733,3340.7,3340.0,3.6667]
[1735742327218,0.29996,3340.3,3340.2,0.29996]
[1735742327420,5.88489733,3340.7,3340.1,0.46902603]
[1735742327421,0.29994,3340.5,3340.4,0.29994]
[1735742327622,0.29994,3340.5,3340.4,3.50774]
[1735742328013,0.29994,3340.5,3340.4,3.2078]
[1735742328917,0.29994,3340.5,3339.9,3.2078]
[1735742328918,0.29998,3340.0,3339.9,3.2078]
[1735742329427,0.29998,3340.0,3339.9,3.67687132]
[1735742329618,0.29998,3340.0,3339.9,3.2078]
[1735742329922,0.29997,3340.1,3340.0,0.29997]
[1735742330123,6.78299733,3340.2,3339.9,3.67685085]
[1735742330422,0.29998,3340.0,3339.9,3.2078]
[1735742331020,0.8981,3340.2,3339.9,3.2078]
[1735742331216,0.8981,3340.2,3340.0,0.29997]
[1735742331217,0.29998,3340.1,3340.0,0.29997]
[1735742331724,0.29998,3340.1,3340.0,0.76901082]
[1735742332023,0.29998,3340.1,3340.0,0.29997]
[1735742332227,0.76807,3340.2,3340.1,0.29997]
[1735742333027,0.4681,3340.2,3340.1,0.29997]
[1735742333326,5.88489733,3340.4,3340.3,0.29995]
[1735742333923,5.88489733,3340.4,3340.3,3.97677609]
[1735742334323,6.18482733,3340.6,3340.3,3.67682609]
[1735742334622,6.18482733,3340.6,3340.5,0.29994]
[1735742334819,6.18482733,3340.6,3340.5,0.76896609]
[1735742335218,6.18482733,3340.6,3340.5,0.29994]
[1735742335423,0.29993,3340.6,3340.5,0.29994]
[1735742335830,0.29994,3340.5,3340.4,0.76864]
[1735742336125,0.29994,3340.5,3340.4,1.23762971]
[1735742336513,0.29994,3340.5,3340.4,0.46898971]
[1735742337026,0.29994,3340.4,3340.3,0.29995]
[1735742337226,0.29994,3340.4,3340.3,0.76897254]
[1735742337423,0.29994,3340.4,3340.3,3.97677254]
[1735742338821,0.29994,3340.4,3340.3,3.67682254]
[1735742339117,0.29994,3340.4,3340.3,0.46902254]
[1735742339320,0.76384,3340.4,3340.3,0.46902254]
[1735742339621,0.29995,3340.3,3340.2,0.29996]
[1735742339828,0.4639,3340.4,3339.9,0.4507]
[1735742340126,0.29997,3340.1,3340.0,0.7690223]
[1735742340627,0.29997,3340.1,3340.0,0.7690323]
[1735742344038,0.29997,3340.1,3340.0,0.4690523]
[1735742344226,5.88394643,3340.2,3339.3,7.86057855]
[1735742344425,0.30002,3339.6,3339.5,0.30002]
[1735742344625,0.30002,3339.6,3339.5,0.76914536]
[1735742345330,0.30002,3339.6,3339.5,0.30002]
[1735742345827,0.30003,3339.5,3339.4,0.30003]
[1735742346331,0.30003,3339.5,3339.4,0.76916744]
[1735742346518,0.30003,3339.5,3339.4,0.30003]
[1735742350030,5.88394643,3339.7,3339.3,3.2078]
[1735742350226,5.88394643,3339.7,3339.6,0.30002]
[1735742351126,0.4624,3340.2,3339.5,2.27714715]
[1735742351127,5.88394643,3339.8,3339.5,2.27714715]
[1735742351334,5.88394643,3339.8,3339.7,3.50781]
[1735742351824,5.88394643,3339.8,3339.7,3.95521]
[1735742352019,5.18014643,3339.8,3339.7,4.42426806]
[1735742352222,1.35244643,3340.3,3339.7,6.09072604]
[1735742352424,1.35244643,3340.3,3340.2,0.29996]
[1735742353031,1.35244643,3340.3,3340.2,0.76901806]
[1735742353534,0.29994,3340.5,3340.4,0.29994]
[1735742355230,3.6702,3340.7,3340.0,40.8]
[1735742355435,0.4624,3340.7,3340.3,3.2078]
[1735742355621,0.4624,3340.7,3340.6,0.29993]
[1735742355825,0.4346,3341.0,3340.9,0.2999]
[1735742356027,10.27248932,3341.1,3340.5,2.27714715]
[1735742356222,10.57237932,3341.1,3341.0,0.29989]
[1735742356533,0.2999,3341.0,3340.9,0.29989]
[1735742357328,3.2078,3341.1,3340.5,2.27714715]
[1735742357631,0.29991,3340.9,3340.8,0.2999]
[1735742357828,0.29991,3340.8,3340.7,0.29991]
[1735742359030,0.4642,3341.2,3340.6,3.2078]
[1735742359235,0.2999,3340.9,3340.8,0.2999]
[1735742359536,0.4642,3341.2,3340.6,3.2078]
[1735742359726,0.29989,3341.1,3341.0,0.29989]
[1735742359932,0.76408,3341.2,3341.1,0.29988]
[1735742360327,0.4642,3341.2,3341.1,0.29988]
[1735742362437,3.6406,3341.4,3341.3,0.29986]
[1735742362637,3.2078,3341.4,3341.3,0.29986]
[1735742363839,0.29987,3341.3,3341.2,0.29987]
[1735742365835,0.29988,3341.1,3341.0,3.50768]
[1735742366839,0.29988,3341.2,3341.1,0.29988]
[1735742367835,0.4446,3341.3,3341.0,3.2078]
[1735742368039,0.29988,3341.1,3341.0,3.50769]
[1735742368942,0.4446,3341.3,3340.6,3.2078]
[1735742369137,0.29992,3340.8,3340.7,0.29991]
[1735742369342,0.2999,3340.9,3340.8,0.2999]
[1735742373949,3.2078,3341.0,3340.3,0.4541]
[1735742374247,0.29993,3340.6,3340.5,0.29993]
[1735742374450,0.29992,3340.7,3340.6,0.29992]
[1735742375044,0.29994,3340.6,3340.5,3.50773]
[1735742375347,0.73804,3340.6,3340.5,3.50773]
[1735742375537,0.73804,3340.6,3340.5,3.2078]
[1735742375741,0.29995,3340.3,3340.2,0.29996]
[1735742376948,0.4622,3340.5,3340.1,3.2078]
[1735742377146,0.4622,3340.5,3340.4,0.29994]
[1735742377347,0.29994,3340.5,3340.4,0.29994]
[1735742377653,0.73803,3340.6,3340.5,0.29994]
[1735742379349,0.29994,3340.5,3340.4,0.29994]
[1735742380148,0.73803,3340.6,3340.5,0.29994]
[1735742381753,0.73803,3340.6,3340.5,3.50774]
[1735742382253,0.4381,3340.6,3340.5,3.50774]
[1735742382453,0.4381,3340.6,3340.5,3.97670945]
[1735742383155,0.4381,3340.6,3340.5,3.50774]
[1735742383352,0.73803,3340.6,3340.5,3.2078]
[1735742385957,0.73803,3340.6,3340.5,3.50774]
[1735742388253,0.4225,3340.8,3340.7,0.29992]
[1735742388756,0.4225,3340.8,3340.7,0.76886994]
[1735742389751,0.72241,3340.8,3340.7,0.76886994]
[1735742389951,0.72241,3340.8,3340.7,0.46894994]
[1735742390151,0.29993,3340.7,3340.6,0.29992]
[1735742390351,0.4225,3340.8,3340.5,3.2078]
[1735742390648,0.72241,3340.8,3340.7,0.29992]
[1735742391259,0.4225,3340.8,3340.7,0.29992]
[1735742391462,0.4225,3340.8,3340.7,0.76884607]
[1735742391654,0.72241,3340.8,3340.7,0.76884607]
[1735742391856,0.72241,3340.8,3340.7,0.29992]
[1735742392753,0.29991,3340.8,3340.7,0.29992]
[1735742393353,0.29991,3340.8,3340.7,0.76885491]
[1735742398264,0.4646,3341.1,3340.7,0.46893491]
[1735742398562,0.29991,3340.9,3340.8,0.2999]
[1735742398759,0.29991,3340.9,3340.8,0.46893491]
[1735742399765,0.4646,3341.1,3340.6,3.50772]
[1735742400061,0.29992,3340.7,3340.6,3.50772]
[1735742400458,0.29992,3340.7,3340.6,3.97669917]
[1735742401362,0.76511,3340.8,3340.7,0.29992]
[1735742401551,0.76511,3340.8,3340.7,0.76889917]
[1735742402662,0.4652,3340.8,3340.7,0.76889917]
[1735742402866,7.50628932,3341.2,3341.0,0.29988]
[1735742403157,0.8678,3341.2,3340.7,0.4442]
[1735742403359,7.06468932,3341.3,3341.2,0.29987]
[1735742403867,7.06468932,3341.3,3341.2,1.78629662]
[1735742404069,7.06468932,3341.3,3341.2,42.31901572]
[1735742404276,7.06468932,3341.3,3341.2,42.58624587]
[1735742404460,9.30282284,3341.6,3341.5,0.29985]
[1735742404461,7.06468932,3341.6,3341.5,0.29985]
[1735742404763,7.06468932,3341.6,3341.5,3.9765522]
[1735742405359,7.36452932,3341.6,3341.5,3.9765522]
[1735742405666,0.4262,3341.7,3341.6,0.29984]
[1735742406163,0.4262,3341.7,3341.6,0.76865191]
[1735742406562,0.72603,3341.7,3341.6,0.76865191]
[1735742406862,0.72603,3341.7,3341.6,0.46881191]
[1735742407459,0.29987,3341.3,3341.2,0.29987]
[1735742407660,0.29986,3341.4,3341.3,0.29985]
[1735742407965,0.4562,3341.6,3341.3,0.46885463]
[1735742408163,0.4262,3341.7,3341.6,0.29984]
[1735742408361,0.72603,3341.7,3341.6,0.29984]
[1735742408868,0.29984,3341.6,3341.5,3.50764]
[1735742409159,0.4262,3341.7,3341.5,3.2078]
[1735742409362,0.72603,3341.7,3341.6,0.29984]
[1735742409564,0.4262,3341.7,3341.6,0.29984]
[1735742409762,8.26568932,3342.1,3342.0,0.2998]
[1735742409962,0.2998,3342.0,3341.9,0.2998]
[1735742410558,0.29981,3341.9,3341.8,0.29981]
[1735742411567,0.72611,3342.0,3341.9,0.29981]
[1735742411866,0.4263,3342.0,3341.9,0.29981]
[1735742412663,0.29978,3342.2,3341.6,0.7496]
[1735742412863,1.15488,3342.3,3342.2,0.29978]
[1735742413061,0.4263,3342.3,3342.2,3.50758]
[1735742415474,0.29976,3342.5,3342.4,0.29976]
[1735742415675,0.74346,3342.5,3342.4,0.29976]
[1735742417662,0.4437,3342.5,3342.4,0.29976]
[1735742417865,0.29969,3343.3,3342.4,0.74942]
[1735742418063,0.29969,3343.3,3342.3,2.27714715]
[1735742418064,0.4682,3342.9,3342.8,0.29973]
[1735742418369,0.4682,3342.9,3342.8,3.50753]
[1735742419273,0.29975,3342.6,3342.5,0.76845]
[1735742419480,0.29976,3342.5,3342.4,3.2078]
[1735742419771,1.18506,3342.5,3342.4,3.2078]
[1735742420777,0.29978,3342.3,3342.2,0.29978]
[1735742421572,0.29979,3342.1,3342.0,3.2078]
[1735742422171,0.74949,3342.2,3341.5,3.2078]
[1735742422477,0.29984,3341.6,3341.5,3.2078]
[1735742423071,0.29984,3341.6,3340.8,0.74977]
[1735742423072,0.29988,3341.2,3341.1,3.2078]
[1735742423282,0.73515,3341.5,3341.4,0.29985]
[1735742423771,0.29984,3341.6,3341.2,2.71134715]
[1735742423971,1.19081,3342.0,3341.9,0.29981]
[1735742424775,0.29982,3341.8,3341.7,0.29982]
[1735742425481,0.29983,3341.7,3341.6,0.29983]
[1735742426270,0.29982,3341.8,3341.7,0.29983]
[1735742426583,0.29981,3341.9,3341.8,0.29982]
[1735742426885,0.29982,3341.8,3341.7,0.29982]
[1735742427175,0.891,3342.0,3341.5,3.2078]
[1735742427370,0.29983,3341.7,3341.6,0.29983]
[1735742427571,0.891,3342.0,3341.1,3.2078]
[1735742427771,0.29987,3341.3,3341.2,0.29987]
[1735742427978,0.4292,3341.6,3341.1,3.2078]
[1735742428173,0.72287,3341.2,3341.1,3.50768]
[1735742429472,0.72287,3341.2,3341.1,3.2078]
[1735742429679,0.72287,3341.2,3341.1,3.50768]
[1735742429982,0.4669,3341.5,3341.1,3.2078]
[1735742430282,0.29987,3341.3,3341.2,0.29987]
[1735742430682,0.4621,3341.4,3341.1,3.2078]
[1735742430888,0.29987,3341.2,3341.1,3.50768]
[1735742431081,0.29987,3341.2,3341.1,3.2078]
[1735742432580,0.4621,3341.4,3341.3,0.29986]
[1735742433485,0.76195,3341.4,3341.3,0.29986]
[1735742433686,0.29981,3341.9,3341.7,0.29982]
[1735742433884,0.75741,3341.9,3341.7,0.29982]
[1735742434082,0.4576,3341.9,3341.8,0.29982]
[1735742434284,0.29978,3342.2,3342.1,0.29979]
[1735742434480,3.2078,3342.3,3341.6,6.23452715]
[1735742434481,0.2998,3342.1,3342.0,0.2998]
[1735742434985,0.29979,3342.2,3342.1,0.29978]
[1735742435485,0.2998,3342.1,3342.0,0.2998]
[1735742438291,0.29981,3342.0,3341.9,0.29981]
[1735742439085,3.6654,3342.3,3341.7,0.29982]
[1735742439086,0.29983,3341.8,3341.7,0.29982]
[1735742439683,0.4221,3341.9,3341.6,3.2078]
[1735742439882,0.72643,3341.7,3341.6,3.50763]
[1735742440091,0.72643,3341.7,3341.6,3.2078]
[1735742441491,0.2998,3342.0,3341.9,0.2998]
[1735742441895,0.29983,3341.8,3341.7,0.29982]
[1735742442287,0.29983,3341.7,3341.6,3.50763]
[1735742442489,0.29983,3341.7,3341.6,3.2078]
[1735742443295,0.29981,3342.0,3341.9,0.2998]
[1735742443696,0.29982,3341.9,3341.8,0.29981]
[1735742448396,0.29981,3342.0,3341.9,0.2998]
[1735742448997,0.8725,3342.2,3341.7,3.6676]
[1735742449199,0.2998,3342.1,3342.0,0.29979]
[1735742449696,0.4492,3342.2,3342.1,0.29979]
[1735742450002,0.29977,3342.4,3342.3,0.29977]
[1735742451800,0.29979,3342.3,3342.2,0.29978]
[1735742451996,0.29979,3342.2,3342.1,0.29979]
[1735742452802,4.1026,3342.5,3342.0,0.2998]
[1735742452803,0.2998,3342.1,3342.0,0.2998]
[1735742453004,0.29982,3341.8,3341.7,4.72162]
[1735742453309,0.29982,3341.8,3341.7,3.50762]
[1735742453700,0.29982,3341.8,3341.7,3.97642433]
[1735742454106,0.29982,3341.8,3341.7,3.67660433]
[1735742454401,0.29982,3341.8,3341.7,3.97643433]
[1735742455716,0.29982,3341.8,3341.7,3.67660433]
[1735742455919,0.29982,3341.8,3341.7,3.50763]
[1735742456211,0.74959,3341.7,3341.2,0.29987]
[1735742456416,0.29989,3341.1,3341.0,0.29988]
[1735742456611,0.29989,3341.1,3341.0,0.76876788]
[1735742457607,0.29989,3341.1,3341.0,0.29988]
[1735742457807,3.2078,3341.3,3340.7,40.8]
[1735742458005,0.9098,3341.0,3340.6,0.29992]
[1735742458508,0.29993,3340.6,3340.5,3.50774]
[1735742458815,0.2999,3340.9,3340.8,0.29991]
[1735742459016,0.29992,3340.8,3340.7,0.29991]
[1735742459314,0.4434,3341.0,3340.5,3.2078]
[1735742459807,0.29992,3340.7,3340.6,0.29992]
[1735742461524,0.29993,3340.6,3340.5,3.50773]
[1735742462309,3.2078,3341.3,3340.5,3.2078]
[1735742462514,3.2078,3341.3,3341.2,0.29987]
[1735742464517,3.50766,3341.3,3341.2,0.29987]
[1735742464717,3.2078,3341.3,3341.2,0.29987]
[1735742465806,7.06468932,3342.0,3341.7,0.29982]
[1735742466022,7.06468932,3341.9,3341.8,0.29982]
[1735742466220,7.06468932,3341.9,3341.8,3.50762]
[1735742466813,7.06468932,3341.9,3341.8,3.97635483]
[1735742467011,0.29978,3342.2,3341.8,3.67653483]
[1735742467212,0.4435,3342.5,3341.8,3.2078]
[1735742467512,0.29979,3342.2,3341.9,0.29981]
[1735742467716,0.4435,3342.5,3341.8,3.2078]
[1735742467921,0.29978,3342.3,3342.2,0.29978]
[1735742468109,0.29977,3342.4,3342.3,0.29977]
[1735742471619,3.2078,3342.7,3341.8,3.95735]
[1735742471620,3.2078,3342.7,3342.6,0.29975]
[1735742471819,7.06468932,3342.9,3342.8,0.29973]
[1735742472024,7.52468932,3343.0,3342.9,0.29972]
[1735742472615,7.06468932,3343.0,3342.9,0.29972]
[1735742473019,7.06468932,3343.0,3342.9,0.73302]
[1735742473322,0.4626,3343.3,3343.2,0.29969]
[1735742473719,0.8667,3343.5,3343.0,0.4425]
[1735742473913,1.16637,3343.5,3343.0,0.4425]
[1735742474228,0.29968,3343.4,3343.2,0.29969]
[1735742475725,0.29968,3343.4,3343.3,0.29968]
[1735742476525,0.29968,3343.4,3343.0,0.4425]
[1735742476726,0.29968,3343.4,3343.2,0.29969]
[1735742476923,0.29968,3343.4,3343.0,0.4425]
[1735742477124,0.8667,3343.5,3343.0,0.4425]
[1735742477324,0.2997,3343.2,3343.0,0.4425]
[1735742477526,0.8667,3343.5,3343.0,0.74221]
[1735742477822,0.2997,3343.2,3343.0,0.74221]
[1735742480223,0.2997,3343.1,3343.0,0.74221]
[1735742482128,0.8667,3343.5,3342.8,3.2078]
[1735742482327,0.29972,3342.9,3342.8,3.2078]
[1735742486327,0.29972,3342.9,3342.8,3.50752]
[1735742486831,0.29972,3342.9,3342.8,3.2078]
[1735742488135,0.29972,3342.9,3342.8,3.50753]
[1735742488322,0.4233,3343.1,3342.8,3.2078]
[1735742488524,0.29972,3343.0,3342.9,0.29972]
[1735742488923,0.72301,3343.1,3343.0,0.29971]
[1735742489530,0.29972,3343.0,3342.9,0.29972]
[1735742489930,0.29972,3342.9,3342.8,3.50753]
[1735742490234,0.75192,3342.9,3342.8,3.50753]
[1735742491337,0.75192,3342.9,3342.8,3.2078]
[1735742494336,0.75192,3342.9,3342.8,3.50753]
[1735742495532,0.75192,3342.9,3342.8,0.29973]
[1735742496138,0.75192,3342.9,3342.8,3.50753]
[1735742496442,0.2997,3343.2,3343.1,0.2997]
[1735742498340,0.9262,3343.4,3342.9,0.8953]
[1735742498541,0.9262,3343.4,3342.9,0.29972]
[1735742498542,0.29971,3343.0,3342.9,0.29972]
[1735742500244,0.29971,3343.0,3342.9,0.7683505]
[1735742500744,0.29971,3343.0,3342.9,0.29972]
[1735742501641,0.29971,3343.0,3342.9,0.76834745]
[1735742502041,0.29971,3343.0,3342.9,0.46862745]
[1735742502445,0.29971,3343.0,3342.9,0.29972]
[1735742502640,0.29972,3342.9,3342.8,3.50752]
[1735742502945,0.75362,3342.9,3342.8,3.50752]
[1735742503145,0.4578,3343.4,3342.8,3.2078]
[1735742503339,0.4578,3343.4,3342.9,0.4676]
[1735742503538,0.29971,3343.1,3343.0,0.2997]
[1735742503745,0.2997,3343.2,3343.1,0.2997]
[1735742505243,3.2078,3343.2,3342.9,0.4676]
[1735742505437,3.2078,3343.2,3342.1,0.4503]
[1735742505750,3.2078,3343.2,3341.9,5.48494715]
[1735742505751,0.29977,3342.3,3342.2,0.4245]
[1735742505945,3.2078,3342.6,3342.2,0.4245]
[1735742506146,0.4256,3342.5,3342.2,0.72428]
[1735742506448,0.29976,3342.5,3342.2,0.4245]
[1735742507348,0.29977,3342.4,3342.2,0.4245]
[1735742507549,0.29977,3342.3,3342.2,0.4245]
[1735742507942,0.8528,3342.5,3342.2,0.4245]
[1735742508148,0.72536,3342.5,3342.2,0.72427]
[1735742508347,0.29976,3342.5,3342.2,0.72427]
[1735742508744,3.2078,3342.6,3342.2,0.4245]
[1735742508948,0.29977,3342.3,3342.2,0.4245]
[1735742510657,0.4564,3342.5,3342.2,0.4245]
[1735742511051,0.4564,3342.5,3342.0,0.4545]
[1735742511251,0.29979,3342.2,3342.0,0.8801]
[1735742511452,0.29979,3342.2,3342.1,0.46875867]
[1735742511854,0.29979,3342.1,3342.0,0.8801]
[1735742512054,0.29979,3342.1,3342.0,1.3488591]
[1735742513056,0.29979,3342.1,3342.0,0.4687591]
[1735742513258,0.29979,3342.1,3341.7,44.0078]
[1735742513259,0.4675,3342.3,3341.7,44.8594]
[1735742513459,0.29982,3341.9,3341.7,44.8594]
[1735742513958,0.4675,3342.3,3341.7,4.0594]
[1735742514166,0.29982,3341.8,3341.7,4.0594]
[1735742515255,0.29982,3341.8,3341.7,3.2078]
[1735742518663,0.29982,3341.8,3341.6,0.29983]
[1735742520065,3.6753,3342.3,3341.7,40.8]
[1735742520265,0.29978,3342.2,3342.0,0.29979]
[1735742521458,0.29979,3342.1,3342.0,0.29979]
[1735742521867,0.29979,3342.2,3341.7,40.8]
[1735742522061,3.2078,3342.3,3342.2,0.29978]
[1735742522666,3.50758,3342.3,3342.0,1.3479]
[1735742522960,3.50758,3342.3,3342.2,0.29978]
[1735742523366,3.50758,3342.3,3342.0,1.3479]
[1735742523561,3.2078,3342.3,3342.2,0.29978]
[1735742525261,3.2078,3342.3,3342.0,2.5619]
[1735742525469,3.2078,3342.3,3341.9,3.5076]
[1735742525681,0.29979,3342.1,3341.9,3.5076]
[1735742526766,0.2998,3342.0,3341.9,3.2078]
[1735742526969,0.29979,3342.1,3342.0,0.29979]
[1735742527366,0.29979,3342.2,3342.1,0.29979]
[1735742527566,3.2078,3342.3,3342.2,0.29978]
[1735742528570,3.50757,3342.3,3342.2,0.29978]
[1735742531267,3.2078,3342.3,3342.2,0.29978]
[1735742532076,3.50757,3342.3,3342.2,0.29978]
[1735742533764,3.50757,3342.3,3341.9,3.2078]
[1735742533969,0.2998,3342.1,3342.0,0.2998]
[1735742534171,0.29979,3342.2,3342.1,0.29978]
[1735742534573,0.29979,3342.2,3342.1,0.76853982]
[1735742535979,0.29979,3342.2,3342.1,0.46875982]
[1735742536168,0.29979,3342.2,3342.1,0.76854982]
[1735742536372,0.29979,3342.2,3342.1,0.29979]
[1735742536873,0.29979,3342.2,3342.1,0.76855035]
[1735742538175,0.29979,3342.2,3342.1,0.29979]
[1735742540281,0.29979,3342.2,3342.1,0.76855241]
[1735742544777,4.5709,3342.6,3342.1,0.46876241]
[1735742545079,4.5709,3342.6,3342.5,0.29976]
[1735742545080,4.1083,3342.6,3342.5,0.29976]
[1735742545279,0.9005,3342.6,3342.5,3.50756]
[1735742545682,0.9005,3342.6,3342.5,3.97624519]
[1735742545881,1.20025,3342.6,3342.5,3.97624519]
[1735742546277,1.20025,3342.6,3342.5,3.67648519]
[1735742546782,1.20025,3342.6,3342.5,3.97624519]
[1735742547089,1.20025,3342.6,3342.5,3.50756]
[1735742547681,1.20025,3342.6,3342.5,3.2078]
[1735742549483,1.20025,3342.6,3342.5,3.50756]
[1735742549781,1.20025,3342.6,3342.5,3.2078]
[1735742551573,0.9005,3342.6,3342.1,3.2078]
[1735742551777,0.29978,3342.3,3342.2,0.468732]
[1735742552180,0.29978,3342.3,3342.2,0.768512]
[1735742552388,0.29978,3342.3,3342.2,0.29978]
[1735742554884,1.64989,3342.6,3342.1,3.2078]
[1735742555086,0.29978,3342.2,3342.1,3.50759]
[1735742555289,0.29978,3342.2,3342.1,3.97634678]
[1735742555991,0.29978,3342.2,3342.1,3.67655678]
[1735742556283,1.64989,3342.6,3342.1,0.46875705]
[1735742556284,0.74942,3342.4,3342.1,0.46875705]
[1735742556586,0.29979,3342.1,3342.0,1.5138]
[1735742557792,0.29979,3342.1,3342.0,0.2998]
[1735742558092,0.29979,3342.1,3342.0,0.7685655]
[1735742561289,0.29979,3342.2,3342.1,0.29978]
[1735742561689,0.29979,3342.2,3342.1,0.7685455]
[1735742562715,0.73098,3342.3,3342.2,0.29978]
[1735742563099,0.73098,3342.3,3342.2,0.7685455]
[1735742564500,3.2078,3342.5,3342.2,0.4687655]
[1735742564699,3.2078,3342.5,3342.1,3.2078]
[1735742564700,0.29977,3342.4,3342.3,0.7685255]
[1735742565204,0.29977,3342.4,3342.3,0.4687655]
[1735742565405,0.4447,3342.5,3342.1,3.50759]
[1735742565594,0.29978,3342.2,3342.1,3.50759]
[1735742565799,0.29978,3342.2,3342.1,3.97635115]
[1735742567506,0.29978,3342.3,3342.2,0.29977]
[1735742568612,0.29978,3342.3,3342.2,0.7685082]